[Event "IIFL Wealth  4th Mumbai Junior U-13"]
[Site "Mumbai"]
[Date "2018.12.31"]
[Round "2"]
[White "Mahajan Ayush"]
[Black "Vivaan Vijay Saraogi"]
[Result "0-1"]
[ECO "B01"]
[WhiteElo "1629"]
[BlackElo "1290"]
[Annotator "NA"]
[PlyCount "80"]
[EventDate "2018.12.30"]
[EventType "swiss"]
[EventCountry "IND"]
[SourceTitle "playchess.com"]
[Source "ChessBase"]
[SourceQuality "1"]
[TimeControl "40/5400+30:1800+30"]

1. e4 {[%emt 0:00:00]} d5 {[%emt 0:00:00]} 2. exd5 {[%emt 0:01:11]} Nf6 {[%emt 0:00:00]} 3. d4 Bg4 {[%emt 0:00:00]} 4. f3 {[%emt 0:10:52]} Bf5 {[%emt 0:00:22]} 5. g4 {[%emt 0:01:56]} Bg6 {[%emt 0:02:01]} 6. c4 {[%emt 0:03:22]} e6 {[%emt 0:00:06]} 7. g5 {[%emt 0:01:02]} Nh5 {[%emt 0:02:00]} 8. f4 {[%emt 0:00:38]} Be4 {[%emt 0:03:51]} 9. Qxh5 {[%emt 0:00:16]} Bxh1 {[%emt 0:00:13]} 10. dxe6 {[%emt 0:00:10]} g6 11. exf7+ {[%emt 0:04:17]} Kxf7 {[%emt 0:00:27]} 12. Qd1 {[%emt 0:01:02]} Bb4+ {[%emt 0:00:16]} 13. Nc3 {[%emt 0:00:16]} Re8+ {[%emt 0:00:05]} 14. Be2 {[%emt 0:00:30]} Nc6 {[%emt 0:01:24]} 15. d5 {[%emt 0:01:14]} Ne7 {[%emt 0:00:11]} 16. Qd3 {[%emt 0:11:33]} Nf5 {[%emt 0:02:00]} 17. Bd2 {[%emt 0:01:04]} Qd6 {[%emt 0:05:59]} 18. O-O-O {[%emt 0:04:49]} Bxc3 {[%emt 0:02:36]} 19. Qxc3 {[%emt 0:00:54]} b5 {[%emt 0:00:28]} 20. c5 {[%emt 0:01:00]} Qa6 {[%emt 0:00:27]} 21. Qb3 {[%emt 0:00:49]} Nd4 {[%emt 0:01:47]} 22. Qd3 {[%emt 0:00:19]} Qa4 {[%emt 0:02:13]} 23. Be1 {[%emt 0:21:42]} Be4 {[%emt 0:00:13]} 24. Qc3 {[%emt 0:00:24]} b4 {[%emt 0:00:28]} 25. Qc4 {[%emt 0:01:15]} Nxe2+ {[%emt 0:02:37]} 26. Nxe2 {[%emt 0:00:24]} Bf3 {[%emt 0:02:32]} 27. d6+ {[%emt 0:00:57]} Re6 {[%emt 0:04:26]} 28. Nc3 {[%emt 0:00:49]} Qc6 {[%emt 0:04:21]} 29. Nb5 {[%emt 0:04:32]} Bxd1 {[%emt 0:06:28]} 30. Nxc7 {[%emt 0:08:56]} Bg4 {[%emt 0:01:30]} 31. Nxa8 {[%emt 0:01:41]} Qxa8 {[%emt 0:00:54]} 32. c6 {[%emt 0:00:08]} Be2 {[%emt 0:00:53]} 33. Qd5 {[%emt 0:03:06]} Bb5 {[%emt 0:20:54]} 34. Qxb5 {[%emt 0:00:21]} Rxe1+ {[%emt 0:00:29]} 35. Kd2 {[%emt 0:11:05]} Qe8 {[%emt 0:00:25]} 36. Qd3 {[%emt 0:01:24]} Rg1 {[%emt 0:03:09]} 37. Qd5+ {[%emt 0:02:46]} Qe6 {[%emt 0:01:13]} 38. Qxe6+ {[%emt 0:00:12]} Kxe6 {[%emt 0:00:15]} 39. d7 {[%emt 0:00:00]} Ke7 {[%emt 0:00:07]} 40. c7 {[%emt 0:00:00]} Kxd7 {[%emt 0:00:00]} 0-1

[Event "IIFL Wealth  4th Mumbai Junior U-13"]
[Site "Mumbai"]
[Date "2018.12.31"]
[Round "2"]
[White "Akshit Jha"]
[Black "Vishal Shewale"]
[Result "1-0"]
[ECO "B54"]
[WhiteElo "1604"]
[BlackElo "1287"]
[Annotator "NA RC"]
[PlyCount "67"]
[EventDate "2018.12.30"]
[EventType "swiss"]
[EventCountry "IND"]
[SourceTitle "playchess.com"]
[Source "ChessBase"]
[SourceQuality "1"]
[TimeControl "40/5400+30:1800+30"]

1. e4 {[%emt 0:00:00]} c5 {[%emt 0:00:00]} 2. Nf3 {[%emt 0:00:00]} d6 {[%emt 0:00:00]} 3. d4 {[%emt 0:00:00]} cxd4 {[%emt 0:00:00]} 4. Nxd4 {[%emt 0:00:00]} Nf6 {[%emt 0:00:00]} 5. f3 {[%emt 0:00:00]} a6 {[%emt 0:00:07]} 6. c4 {[%emt 0:00:02]} e6 {[%emt 0:00:07]} 7. Nc3 {[%emt 0:00:06]} Nc6 {[%emt 0:05:06]} 8. Be3 {[%emt 0:00:07]} Be7 {[%emt 0:14:00]} 9. Be2 {[%emt 0:01:00]} Qc7 {[%emt 0:00:44]} 10. O-O {[%emt 0:01:02]} Ne5 {[%emt 0:06:23]} 11. Rc1 {[%emt 0:00:42]} Bd7 {[%emt 0:07:21]} 12. b3 {[%emt 0:00:12]} Bc6 {[%emt 0:00:40]} 13. Qd2 {[%emt 0:03:39]} h5 {[%emt 0:08:06]} 14. Nd5 {[%emt 0:02:53]} Bxd5 {[%emt 0:04:58]} 15. cxd5 {[%emt 0:00:49]} Qd7 {[%emt 0:00:10]} 16. dxe6 {[%emt 0:01:27]} fxe6 {[%emt 0:00:10]} 17. f4 {[%emt 0:00:20]} Neg4 {[%emt 0:01:41]} 18. Bxg4 {[%emt 0:01:09]} Nxg4 {[%emt 0:01:51]} 19. f5 {[%emt 0:00:26]} exf5 {[%emt 0:03:56]} 20. exf5 {[%emt 0:02:54]} O-O {[%emt 0:02:04]} 21. Ne6 {[%emt 0:01:18]} Rfc8 {[%emt 0:03:22]} 22. Bd4 {[%emt 0:00:17]} Bf6 {[%emt 0:02:41]} 23. Rcd1 {[%emt 0:01:18]} Rc6 {[%emt 0:07:49]} 24. h3 {[%emt 0:03:24]} Ne5 {[%emt 0:02:05]} 25. Qe2 {[%emt 0:11:05]} Qf7 {[%emt 0:05:13]} 26. Nf4 {[%emt 0:05:14]} h4 {[%emt 0:00:49]} 27. Bxe5 {[%emt 0:00:32]} Bxe5 {[%emt 0:00:19]} 28. Ng6 {[%emt 0:00:10]} Qf6 {[%emt 0:03:24]} 29. Qh5 {[%emt 0:06:04]} Rac8 {[%emt 0:00:10]} 30. Rfe1 {[%emt 0:00:54]} R6c7 {[%emt 0:02:50]} 31. Re4 {[%emt 0:04:33]} Rc1 {[%emt 0:03:07]} 32. Rxh4 {[%emt 0:03:43]} Rxd1+ {[%emt 0:00:49]} 33. Qxd1 {[%emt 0:00:08]} Rd8 {[%emt 0:05:58]} 34. Qd5+ {[%emt 0:00:13]} 1-0

[Event "IIFL Wealth  4th Mumbai Junior U-13"]
[Site "Mumbai"]
[Date "2018.12.31"]
[Round "2"]
[White "Tejes Suresh Kumar"]
[Black "Sneha Halder"]
[Result "1-0"]
[ECO "B30"]
[WhiteElo "1586"]
[BlackElo "1282"]
[Annotator "NA RC"]
[PlyCount "85"]
[EventDate "2018.12.30"]
[EventType "swiss"]
[EventCountry "IND"]
[SourceTitle "playchess.com"]
[Source "ChessBase"]
[SourceQuality "1"]
[TimeControl "40/5400+30:1800+30"]

1. e4 c5 2. Nf3 Nc6 3. Bb5 d6 4. O-O Bd7 5. Re1 Nf6 6. c3 a6 7. Bf1 Bg4 8. d4 cxd4 9. cxd4 Bxf3 10. gxf3 g6 11. d5 Na7 12. Nc3 Bg7 13. f4 O-O 14. a4 Nd7 15. Be3 Nc8 16. Bd4 Bxd4 17. Qxd4 Qb6 18. Qd2 Nc5 19. Ra2 Na7 20. Re3 Nb3 21. Qd1 Nc5 22. Qb1 Rac8 23. b4 Nd7 24. Rd2 Nf6 25. Bh3 Rc4 26. Rb2 Qc7 27. Qd3 b5 28. a5 Nd7 29. Qd2 Rc8 30. Rb3 Qb7 31. e5 dxe5 32. fxe5 Rd8 33. e6 Nf6 34. exf7+ Kxf7 35. Be6+ Kg7 36. Rh3 h5 37. Qg5 Rh8 38. Bf5 Rh6 39. Rg3 Nh7 40. Qxh6+ Kf6 41. Qxg6+ Ke5 42. Qe6+ Kf4 43. Ne2# 1-0

[Event "IIFL Wealth  4th Mumbai Junior U-13"]
[Site "Mumbai"]
[Date "2018.12.31"]
[Round "2"]
[White "Pingale Shivraj"]
[Black "Yash Joshi"]
[Result "1-0"]
[ECO "B70"]
[WhiteElo "1580"]
[BlackElo "1389"]
[Annotator "NA"]
[PlyCount "163"]
[EventDate "2018.12.30"]
[EventType "swiss"]
[EventCountry "IND"]
[SourceTitle "playchess.com"]
[Source "ChessBase"]
[SourceQuality "1"]
[TimeControl "40/5400+30:1800+30"]

1. e4 {[%emt 0:00:00]} c5 {[%emt 0:00:00]} 2. Nf3 {[%emt 0:00:00]} d6 {[%emt 0:00:00]} 3. d4 {[%emt 0:00:00]} cxd4 {[%emt 0:00:00]} 4. Nxd4 {[%emt 0:00:00]} Nf6 {[%emt 0:00:00]} 5. Nc3 {[%emt 0:00:00]} g6 {[%emt 0:00:00]} 6. Bc4 Bg7 {[%emt 0:00:37]} 7. O-O {[%emt 0:00:56]} O-O {[%emt 0:00:18]} 8. f3 {[%emt 0:00:38]} Nc6 {[%emt 0:01:07]} 9. Nde2 {[%emt 0:03:12]} Rb8 {[%emt 0:06:40]} 10. Be3 {[%emt 0:00:49]} Bd7 {[%emt 0:04:58]} 11. Qd2 {[%emt 0:03:11]} Ne5 {[%emt 0:09:07]} 12. Bb3 {[%emt 0:02:50]} a6 {[%emt 0:12:01]} 13. Rad1 {[%emt 0:08:10]} b5 {[%emt 0:01:04]} 14. Bh6 {[%emt 0:04:57]} Bxh6 {[%emt 0:08:22]} 15. Qxh6 {[%emt 0:00:09]} a5 {[%emt 0:02:05]} 16. a3 {[%emt 0:00:51]} a4 {[%emt 0:04:34]} 17. Ba2 {[%emt 0:01:21]} b4 {[%emt 0:01:40]} 18. axb4 {[%emt 0:01:46]} Qb6+ {[%emt 0:00:59]} 19. Kh1 {[%emt 0:00:51]} Qxb4 {[%emt 0:01:45]} 20. b3 {[%emt 0:01:34]} a3 {[%emt 0:02:54]} 21. Qc1 {[%emt 0:04:09]} Rfc8 {[%emt 0:01:21]} 22. Nb1 {[%emt 0:05:02]} Bc6 {[%emt 0:19:50]} 23. c3 {[%emt 0:02:54]} Qa5 {[%emt 0:02:05]} 24. Nd4 {[%emt 0:06:20]} Bd7 {[%emt 0:02:29]} 25. c4 {[%emt 0:03:36]} d5 {[%emt 0:05:10]} 26. exd5 {[%emt 0:02:20]} Nxd5 {[%emt 0:02:05]} 27. Nc2 {[%emt 0:00:59]} Nf6 {[%emt 0:02:08]} 28. Qxa3 {[%emt 0:09:36]} Qxa3 {[%emt 0:02:07]} 29. Nbxa3 {[%emt 0:01:13]} Bf5 {[%emt 0:01:29]} 30. Nd4 {[%emt 0:04:02]} Ra8 {[%emt 0:00:55]} 31. Ndb5 {[%emt 0:00:32]} Rxa3 {[%emt 0:01:02]} 32. Nxa3 {[%emt 0:00:07]} Ra8 {[%emt 0:00:12]} 33. Bb1 {[%emt 0:01:20]} Rxa3 {[%emt 0:00:21]} 34. Bxf5 {[%emt 0:00:11]} gxf5 {[%emt 0:00:10]} 35. Rfe1 {[%emt 0:01:27]} Nc6 {[%emt 0:01:03]} 36. Rb1 {[%emt 0:00:15]} e6 {[%emt 0:03:16]} 37. Rec1 {[%emt 0:02:49]} Nb4 {[%emt 0:01:53]} 38. Rd1 {[%emt 0:01:51]} Kf8 {[%emt 0:01:24]} 39. Rd8+ {[%emt 0:00:18]} Ke7 {[%emt 0:00:23]} 40. Rb8 {[%emt 0:00:00]} Nc6 {[%emt 0:00:00]} 41. Rb7+ {[%emt 0:00:45]} Ke8 {[%emt 0:05:21]} 42. b4 {[%emt 0:02:00]} Ra7 {[%emt 0:09:33]} 43. Rb6 {[%emt 0:05:34]} Rc7 {[%emt 0:02:10]} 44. c5 {[%emt 0:04:16]} Nd5 {[%emt 0:01:21]} 45. b5 {[%emt 0:00:26]} Nd8 {[%emt 0:08:51]} 46. Rb8 {[%emt 0:01:07]} Rxc5 {[%emt 0:03:22]} 47. b6 {[%emt 0:00:29]} Nxb6 {[%emt 0:01:40]} 48. R8xb6 {[%emt 0:00:05]} Ke7 {[%emt 0:01:46]} 49. Rd1 {[%emt 0:00:34]} Kf6 {[%emt 0:00:59]} 50. h3 {[%emt 0:00:12]} Nc6 {[%emt 0:00:52]} 51. Rb7 {[%emt 0:00:25]} Na5 {[%emt 0:01:07]} 52. Ra7 {[%emt 0:00:33]} Nc4 {[%emt 0:00:46]} 53. f4 {[%emt 0:01:19]} Rd5 {[%emt 0:00:23]} 54. Rxd5 {[%emt 0:02:45]} exd5 {[%emt 0:00:07]} 55. Ra6+ {[%emt 0:00:05]} Ke7 {[%emt 0:00:40]} 56. Kg1 {[%emt 0:00:06]} Nd6 {[%emt 0:00:44]} 57. Kf2 {[%emt 0:00:12]} Nb5 {[%emt 0:00:37]} 58. Rb6 {[%emt 0:00:44]} Nc7 {[%emt 0:00:23]} 59. Ke3 {[%emt 0:00:37]} Ne6 {[%emt 0:00:27]} 60. g4 {[%emt 0:01:01]} Kf6 {[%emt 0:00:34]} 61. Rb7 {[%emt 0:03:02]} fxg4 {[%emt 0:00:34]} 62. hxg4 {[%emt 0:00:07]} d4+ {[%emt 0:00:21]} 63. Kf3 {[%emt 0:00:16]} h6 {[%emt 0:00:34]} 64. Rd7 {[%emt 0:00:37]} Kg7 {[%emt 0:00:35]} 65. f5 {[%emt 0:00:58]} Ng5+ {[%emt 0:00:24]} 66. Kf4 {[%emt 0:01:06]} Nh3+ {[%emt 0:00:29]} 67. Ke5 {[%emt 0:01:09]} Ng5 {[%emt 0:00:36]} 68. Kxd4 {[%emt 0:00:12]} Kf6 {[%emt 0:00:24]} 69. Rd6+ {[%emt 0:00:28]} Kg7 {[%emt 0:00:30]} 70. Ke3 {[%emt 0:00:16]} f6 {[%emt 0:00:28]} 71. Kf4 {[%emt 0:00:36]} Kf7 {[%emt 0:00:29]} 72. Ra6 {[%emt 0:00:14]} Nh3+ {[%emt 0:00:33]} 73. Kg3 {[%emt 0:00:08]} Ng5 {[%emt 0:00:08]} 74. Ra7+ {[%emt 0:00:04]} Ke8 {[%emt 0:00:25]} 75. Kh4 {[%emt 0:00:10]} Nf7 {[%emt 0:00:59]} 76. Kh5 {[%emt 0:00:13]} Ne5 {[%emt 0:00:17]} 77. Kxh6 {[%emt 0:01:01]} Nxg4+ {[%emt 0:00:20]} 78. Kg6 {[%emt 0:00:03]} Kd8 79. Ra4 {[%emt 0:00:04]} Ne5+ {[%emt 0:01:08]} 80. Kxf6 {[%emt 0:00:09]} Nd7+ {[%emt 0:00:16]} 81. Kg7 {[%emt 0:00:07]} Ke7 {[%emt 0:00:34]} 82. Ra7 {[%emt 0:00:08]} 1-0

[Event "IIFL Wealth  4th Mumbai Junior U-13"]
[Site "Mumbai"]
[Date "2018.12.31"]
[Round "2"]
[White "Vedant Nitin vekhande"]
[Black "Sai Mahati A"]
[Result "0-1"]
[ECO "C68"]
[WhiteElo "1564"]
[BlackElo "1267"]
[Annotator "NA RC"]
[PlyCount "164"]
[EventDate "2018.12.30"]
[EventType "swiss"]
[EventCountry "IND"]
[SourceTitle "playchess.com"]
[Source "ChessBase"]
[SourceQuality "1"]
[TimeControl "40/5400+30:1800+30"]

1. e4 e5 {[%emt 0:02:51]} 2. Nf3 {[%emt 0:00:00]} Nc6 {[%emt 0:00:47]} 3. Bb5 {[%emt 0:00:00]} a6 {[%emt 0:00:10]} 4. Bxc6 {[%emt 0:00:00]} dxc6 {[%emt 0:00:08]} 5. d4 {[%emt 0:00:00]} exd4 {[%emt 0:00:24]} 6. Qxd4 {[%emt 0:00:43]} Qxd4 {[%emt 0:00:23]} 7. Nxd4 {[%emt 0:00:06]} Bd7 {[%emt 0:00:26]} 8. Be3 {[%emt 0:00:08]} Nf6 {[%emt 0:00:48]} 9. f3 {[%emt 0:00:09]} O-O-O {[%emt 0:00:53]} 10. Nd2 {[%emt 0:01:15]} Bb4 {[%emt 0:04:02]} 11. c3 {[%emt 0:00:11]} Ba5 {[%emt 0:01:15]} 12. Nc4 {[%emt 0:02:30]} Bb6 {[%emt 0:01:19]} 13. Nxb6+ {[%emt 0:00:12]} cxb6 {[%emt 0:00:28]} 14. O-O-O {[%emt 0:00:14]} c5 {[%emt 0:03:14]} 15. Nc2 {[%emt 0:00:32]} Ba4 {[%emt 0:04:10]} 16. Rxd8+ {[%emt 0:00:12]} Rxd8 {[%emt 0:00:15]} 17. Rd1 {[%emt 0:00:34]} Rxd1+ {[%emt 0:02:13]} 18. Kxd1 {[%emt 0:00:07]} Kd7 {[%emt 0:01:44]} 19. Kd2 {[%emt 0:00:08]} Kc6 {[%emt 0:03:02]} 20. b3 {[%emt 0:00:36]} Bb5 {[%emt 0:03:22]} 21. c4 {[%emt 0:00:53]} Bxc4 {[%emt 0:01:09]} 22. bxc4 {[%emt 0:00:08]} b5 {[%emt 0:00:05]} 23. cxb5+ {[%emt 0:00:10]} axb5 {[%emt 0:00:06]} 24. Kc3 {[%emt 0:00:52]} b4+ {[%emt 0:00:27]} 25. Kb3 Nd7 {[%emt 0:01:12]} 26. Nxb4+ {[%emt 0:01:41]} cxb4 {[%emt 0:00:32]} 27. Kxb4 {[%emt 0:00:06]} g6 {[%emt 0:01:17]} 28. Bd4 {[%emt 0:00:16]} Nf8 {[%emt 0:01:05]} 29. Be3 {[%emt 0:00:37]} Nd7 {[%emt 0:00:42]} 30. Bd4 {[%emt 0:00:18]} Nf8 {[%emt 0:00:19]} 31. f4 {[%emt 0:00:09]} Ne6 {[%emt 0:00:52]} 32. Be3 {[%emt 0:00:12]} Nc7 {[%emt 0:01:43]} 33. g4 {[%emt 0:01:54]} f5 {[%emt 0:01:49]} 34. exf5 {[%emt 0:00:18]} Nd5+ {[%emt 0:00:08]} 35. Kb3 {[%emt 0:00:16]} Nxe3 {[%emt 0:00:09]} 36. fxg6 {[%emt 0:00:43]} hxg6 {[%emt 0:00:37]} 37. h3 {[%emt 0:00:05]} Kc5 {[%emt 0:11:07]} 38. a4 {[%emt 0:01:16]} b6 {[%emt 0:01:37]} 39. Ka3 {[%emt 0:00:51]} Kc4 {[%emt 0:00:33]} 40. a5 {[%emt 0:00:00]} bxa5 {[%emt 0:00:00]} 41. Ka4 {[%emt 0:00:15]} Kd4 {[%emt 0:02:40]} 42. Kxa5 {[%emt 0:00:07]} Ke4 {[%emt 0:00:14]} 43. f5 {[%emt 0:00:22]} g5 {[%emt 0:01:42]} 44. f6 {[%emt 0:00:09]} Nc4+ {[%emt 0:00:21]} 45. Kb5 {[%emt 0:00:05]} Ne5 {[%emt 0:00:53]} 46. Kc5 {[%emt 0:00:12]} Nf7 {[%emt 0:00:07]} 47. Kc4 {[%emt 0:00:26]} Ke5 {[%emt 0:00:57]} 48. Kd3 {[%emt 0:00:12]} Kxf6 {[%emt 0:00:39]} 49. Ke4 {[%emt 0:00:08]} Ne5 {[%emt 0:01:59]} 50. Ke3 {[%emt 0:00:09]} Ng6 {[%emt 0:00:18]} 51. Ke4 {[%emt 0:00:11]} Nh4 {[%emt 0:00:04]} 52. Kd5 {[%emt 0:00:27]} Ng2 {[%emt 0:01:47]} 53. Ke4 {[%emt 0:00:12]} Ke6 {[%emt 0:00:48]} 54. Kf3 {[%emt 0:00:08]} Nh4+ {[%emt 0:00:08]} 55. Ke4 {[%emt 0:00:05]} Ng6 {[%emt 0:00:24]} 56. Ke3 {[%emt 0:00:22]} Ke5 {[%emt 0:00:08]} 57. Kf3 {[%emt 0:00:03]} Kd4 {[%emt 0:00:13]} 58. Kf2 {[%emt 0:00:26]} Ke4 {[%emt 0:00:10]} 59. Kg3 {[%emt 0:00:04]} Ke3 {[%emt 0:00:06]} 60. Kg2 {[%emt 0:00:07]} Nh4+ {[%emt 0:00:40]} 61. Kg3 {[%emt 0:01:18]} Ke2 {[%emt 0:00:12]} 62. Kh2 {[%emt 0:00:09]} Kf2 {[%emt 0:00:16]} 63. Kh1 {[%emt 0:00:03]} Kg3 {[%emt 0:00:06]} 64. Kg1 {[%emt 0:00:08]} Kxh3 {[%emt 0:00:05]} 65. Kf2 {[%emt 0:00:33]} Kxg4 {[%emt 0:00:06]} 66. Kg1 {[%emt 0:00:08]} Kg3 {[%emt 0:00:04]} 67. Kh1 {[%emt 0:00:05]} g4 {[%emt 0:00:06]} 68. Kg1 {[%emt 0:00:17]} Kh3 {[%emt 0:00:13]} 69. Kh1 {[%emt 0:00:02]} g3 {[%emt 0:00:17]} 70. Kg1 {[%emt 0:00:05]} g2 {[%emt 0:00:12]} 71. Kf2 {[%emt 0:00:01]} Kh2 {[%emt 0:00:15]} 72. Ke3 {[%emt 0:00:16]} g1=Q+ {[%emt 0:00:10]} 73. Ke4 {[%emt 0:00:07]} Qd1 {[%emt 0:00:31]} 74. Ke5 {[%emt 0:00:05]} Qd3 {[%emt 0:00:06]} 75. Kf4 {[%emt 0:00:04]} Qe2 {[%emt 0:01:18]} 76. Kg5 {[%emt 0:00:05]} Qf3 {[%emt 0:00:18]} 77. Kxh4 {[%emt 0:00:05]} Qg2 {[%emt 0:00:14]} 78. Kh5 {[%emt 0:00:01]} Kg1 {[%emt 0:00:08]} 79. Kh4 {[%emt 0:00:04]} Qg6 {[%emt 0:00:10]} 80. Kh3 {[%emt 0:00:04]} Kf2 {[%emt 0:00:15]} 81. Kh4 {[%emt 0:00:05]} Kf3 {[%emt 0:00:07]} 82. Kh3 {[%emt 0:00:03]} Qg3# {[%emt 0:00:03]} 0-1

[Event "IIFL Wealth  4th Mumbai Junior U-13"]
[Site "Mumbai"]
[Date "2018.12.31"]
[Round "2"]
[White "Bharadia Yash"]
[Black "Ghadge Harsh"]
[Result "1-0"]
[ECO "C92"]
[WhiteElo "1559"]
[BlackElo "1265"]
[Annotator "NA"]
[PlyCount "130"]
[EventDate "2018.12.30"]
[EventType "swiss"]
[EventCountry "IND"]
[SourceTitle "playchess.com"]
[Source "ChessBase"]
[SourceQuality "1"]
[TimeControl "40/5400+30:1800+30"]

1. e4 {[%emt 0:00:00]} e5 {[%emt 0:04:48]} 2. Nf3 {[%emt 0:00:00]} Nc6 {[%emt 0:01:09]} 3. Bb5 {[%emt 0:00:00]} a6 {[%emt 0:00:21]} 4. Ba4 {[%emt 0:00:00]} Nf6 {[%emt 0:01:01]} 5. O-O {[%emt 0:00:00]} Be7 {[%emt 0:01:19]} 6. Re1 {[%emt 0:00:05]} b5 {[%emt 0:00:13]} 7. Bb3 {[%emt 0:00:11]} d6 {[%emt 0:00:09]} 8. c3 {[%emt 0:00:20]} O-O {[%emt 0:01:13]} 9. h3 {[%emt 0:00:08]} Bb7 {[%emt 0:01:24]} 10. d4 {[%emt 0:03:02]} Re8 {[%emt 0:01:29]} 11. Nbd2 {[%emt 0:09:33]} Bf8 {[%emt 0:01:57]} 12. Bc2 {[%emt 0:24:23]} h6 {[%emt 0:22:23]} 13. a3 {[%emt 0:01:38]} Qd7 {[%emt 0:13:41]} 14. Nf1 {[%emt 0:00:57]} Rad8 {[%emt 0:00:48]} 15. Ng3 {[%emt 0:10:22]} Ne7 {[%emt 0:07:42]} 16. dxe5 {[%emt 0:03:51]} dxe5 {[%emt 0:00:32]} 17. Qxd7 {[%emt 0:01:22]} Nxd7 {[%emt 0:00:21]} 18. a4 {[%emt 0:00:52]} c6 {[%emt 0:02:28]} 19. Be3 {[%emt 0:02:41]} Ng6 {[%emt 0:01:19]} 20. b4 {[%emt 0:01:32]} c5 {[%emt 0:08:35]} 21. axb5 {[%emt 0:04:36]} axb5 {[%emt 0:02:08]} 22. Ra7 {[%emt 0:00:37]} Bc6 {[%emt 0:01:14]} 23. bxc5 {[%emt 0:01:57]} Nxc5 {[%emt 0:01:21]} 24. Rea1 {[%emt 0:04:25]} Ra8 {[%emt 0:01:44]} 25. h4 {[%emt 0:02:43]} Bd6 {[%emt 0:02:58]} 26. h5 {[%emt 0:02:00]} Nf4 {[%emt 0:00:36]} 27. Rxa8 {[%emt 0:02:47]} Rxa8 {[%emt 0:01:28]} 28. Rxa8+ {[%emt 0:00:08]} Bxa8 {[%emt 0:00:05]} 29. Bxc5 {[%emt 0:01:57]} Bxc5 {[%emt 0:02:32]} 30. Nxe5 {[%emt 0:00:25]} Bd6 {[%emt 0:01:28]} 31. Nf3 {[%emt 0:05:43]} Kf8 {[%emt 0:01:03]} 32. Nd4 {[%emt 0:01:16]} b4 {[%emt 0:01:01]} 33. cxb4 {[%emt 0:00:15]} Bxb4 {[%emt 0:00:11]} 34. Nde2 {[%emt 0:00:14]} Ne6 {[%emt 0:00:59]} 35. Nf5 {[%emt 0:01:02]} Bc5 {[%emt 0:01:03]} 36. Kf1 {[%emt 0:04:19]} Bb7 {[%emt 0:02:33]} 37. Bd3 {[%emt 0:00:23]} Ng5 {[%emt 0:02:25]} 38. f3 {[%emt 0:00:20]} Ne6 {[%emt 0:00:21]} 39. g3 {[%emt 0:00:56]} Ng5 {[%emt 0:02:21]} 40. Kg2 {[%emt 0:00:00]} Bc6 {[%emt 0:00:00]} 41. Ned4 {[%emt 0:03:03]} Bd7 {[%emt 0:02:53]} 42. Nb3 {[%emt 0:03:31]} Ba7 {[%emt 0:01:15]} 43. Nfd4 {[%emt 0:01:23]} Ke7 {[%emt 0:01:25]} 44. f4 {[%emt 0:00:34]} Ne6 {[%emt 0:00:44]} 45. Nf5+ {[%emt 0:05:37]} Kf8 {[%emt 0:00:26]} 46. Bc4 {[%emt 0:00:46]} Nc5 {[%emt 0:07:57]} 47. Nd6 {[%emt 0:02:22]} Nxb3 {[%emt 0:02:32]} 48. Bxb3 {[%emt 0:00:07]} Be8 {[%emt 0:03:28]} 49. Kf3 {[%emt 0:00:58]} Bc5 {[%emt 0:03:11]} 50. Nc4 {[%emt 0:10:31]} Bb4 {[%emt 0:02:36]} 51. g4 {[%emt 0:00:24]} Ke7 {[%emt 0:01:05]} 52. Ne3 {[%emt 0:00:57]} Bc5 {[%emt 0:01:33]} 53. Nf5+ {[%emt 0:00:11]} Kf8 {[%emt 0:00:08]} 54. Ne3 {[%emt 0:02:54]} Bd7 {[%emt 0:02:01]} 55. Nc2 {[%emt 0:01:28]} Bc6 {[%emt 0:01:13]} 56. Ne1 {[%emt 0:01:40]} Bb5 {[%emt 0:01:08]} 57. g5 {[%emt 0:01:18]} hxg5 {[%emt 0:02:04]} 58. fxg5 {[%emt 0:00:02]} Bb4 {[%emt 0:01:56]} 59. Nc2 {[%emt 0:01:52]} Bd2 {[%emt 0:00:21]} 60. Ne3 {[%emt 0:01:32]} Be8 {[%emt 0:02:34]} 61. Bd5 {[%emt 0:01:41]} f6 {[%emt 0:05:01]} 62. g6 {[%emt 0:03:29]} Ba4 {[%emt 0:00:32]} 63. h6 {[%emt 0:01:06]} Bd1+ {[%emt 0:01:16]} 64. Kg2 {[%emt 0:00:41]} gxh6 {[%emt 0:00:27]} 65. Nf5 {[%emt 0:00:02]} Ke8 1-0